bitfinex-derivatives/quotes_SOLF0:USTF0_20260213
["timestamp","ask_amount","ask_price","bid_price","bid_amount"]
[1770977495800,100.16,79.925,79.851,4.28088786]
[1770977495801,3.44441151,79.88,79.851,4.28088786]
[1770977497402,3.44441151,79.89,79.851,4.28088786]
[1770977497712,11.2742,79.889,79.852,11.2791]
[1770977497905,3.44441151,79.88,79.841,4.28432415]
[1770977498503,3.44441151,79.89,79.843,4.28432415]
[1770977499410,11.67837962,79.926,79.815,22.5689]
[1770977499411,11.273,79.897,79.858,4.27564391]
[1770977500812,3.44441151,79.89,79.859,11.2783]
[1770977501110,3.44441151,79.88,79.846,4.25820545]
[1770977501511,3.44441151,79.89,79.846,4.25820545]
[1770977501903,3.44441151,79.88,79.843,11.2805]
[1770977502510,3.44441151,79.87,79.834,4.25820545]
[1770977503811,3.44441151,79.87,79.835,15.53355037]
[1770977505107,3.44441151,79.87,79.83,3.44441151]
[1770977505108,3.44441151,79.87,79.838,15.46233754]
[1770977507708,3.44441151,79.87,79.838,11.2811]
[1770977508911,3.44267014,79.87,79.84,15.46319099]
[1770977509117,3.44267014,79.89,79.841,4.18229099]
[1770977509617,11.2744,79.887,79.847,4.18229099]
[1770977509820,109.7,79.916,79.847,4.18229099]
[1770977509821,3.44267014,79.88,79.847,4.18229099]
[1770977511814,11.2761,79.875,79.84,3.44267014]
[1770977512020,11.2761,79.875,79.836,11.2815]
[1770977513221,3.44267014,79.87,79.836,11.2815]
[1770977513617,3.44267014,79.87,79.841,11.2807]
[1770977513923,3.44267014,79.88,79.841,11.2807]
[1770977514516,3.46656457,79.88,79.841,11.2807]
[1770977514718,11.2755,79.879,79.841,11.2807]
[1770977514913,0.02389443,79.879,79.836,4.17466542]
[1770977515821,11.2762,79.874,79.836,4.17466542]
[1770977516419,11.2762,79.874,79.839,11.2811]
[1770977517220,11.2762,79.874,79.814,22.569]
[1770977517221,3.44267014,79.88,79.844,4.17542197]
[1770977517418,3.44267014,79.89,79.851,4.17542197]
[1770977518722,3.44267014,79.89,79.857,11.2785]
[1770977519021,3.44267014,79.91,79.87,3.44267014]
[1770977519223,3.44267014,79.91,79.871,4.12849977]
[1770977520128,0.11622573,79.889,79.845,4.12849977]
[1770977520721,3.69091914,79.88,79.845,4.12849977]
[1770977520922,3.44267014,79.87,79.831,4.06649605]
[1770977521325,3.44267014,79.87,79.836,11.2815]
[1770977521621,3.44267014,79.89,79.851,4.06649605]
[1770977522721,3.44267014,79.89,79.853,11.2791]
[1770977524126,3.44267014,79.87,79.838,4.17161736]
[1770977524721,3.44267014,79.87,79.839,11.2811]
[1770977525533,3.44267014,79.87,79.838,4.17161736]
[1770977533233,11.276,79.876,79.838,4.17161736]
[1770977533834,14.71947014,79.87,79.838,4.17161736]
[1770977540337,0.07634654,79.869,79.82,3.44267014]
[1770977540542,3.44267014,79.86,79.821,4.15244728]
[1770977540737,0.07634654,79.869,79.821,4.15244728]
[1770977541237,0.07634654,79.869,79.827,4.15423621]
[1770977541238,11.2773,79.866,79.827,4.15423621]
[1770977544149,11.2791,79.854,79.827,4.15423621]
[1770977544437,3.44267014,79.85,79.827,4.15423621]
[1770977544639,3.44267014,79.85,79.815,11.2844]
[1770977544844,3.44267014,79.85,79.816,4.06908501]
[1770977546038,3.44267014,79.85,79.819,4.06908501]
[1770977546245,11.2791,79.854,79.819,4.06908501]
[1770977550849,11.51493239,79.854,79.819,4.06908501]
[1770977551050,0.23583239,79.852,79.807,4.07318189]
[1770977551349,3.44267014,79.84,79.807,4.07318189]
[1770977552257,3.44267014,79.85,79.811,4.07318189]
[1770977552553,0.25849778,79.849,79.811,4.07318189]
[1770977553958,11.53829778,79.849,79.811,4.07318189]
[1770977554147,11.2798,79.849,79.811,4.07318189]
[1770977556061,11.2786,79.857,79.821,4.09106485]
[1770977559270,11.2786,79.857,79.823,11.2833]
[1770977561153,9.16974921,79.875,79.789,23.20775745]
[1770977561154,9.16974921,79.874,79.83,4.07888211]
[1770977561354,2.45e-05,79.971,79.884,175.385]
[1770977561569,99.96,80.024,79.897,37.62]
[1770977561863,174.9774,80.071,79.887,175.3781]
[1770977561864,3.44267014,80.01,79.96,3.44267014]
[1770977562466,3.44267014,80.02,79.97,3.44267014]
[1770977562770,3.44267014,80.02,79.98,3.44267014]
[1770977562972,8.16665125,80.03,79.96,8.16665125]
[1770977563467,304.29517558,80.067,79.99,8.16665125]
[1770977563468,10.448898,80.059,79.99,8.16665125]
[1770977564072,10.448898,80.055,79.99,8.16665125]
[1770977564273,10.448898,80.055,79.948,15.37732622]
[1770977564274,10.448898,80.019,79.938,11.53299466]
[1770977564572,10.448898,80.019,79.95,8.16665125]
[1770977564773,10.448898,80.019,79.912,15.37732622]
[1770977564774,9.97096035,80.009,79.924,11.53299466]
[1770977565074,9.97096035,79.999,79.93,8.16665125]
[1770977565266,18.1376116,80.03,79.96,8.16665125]
[1770977565574,145.27806335,80.08,79.96,8.16665125]
[1770977565575,9.97096035,80.049,79.98,8.16665125]
[1770977566178,9.97096035,80.049,79.99,8.16665125]
[1770977566575,9.97096035,80.049,80.0,8.16665125]
[1770977566779,9.97096035,80.049,79.98,8.16665125]
[1770977567280,9.64250081,80.029,79.934,11.40722846]
[1770977567580,9.64250081,80.029,79.96,8.16665125]
[1770977567979,11.2544,80.028,79.968,11.2628]
[1770977568179,9.64250081,80.029,79.97,8.16665125]
[1770977568577,9.64250081,80.029,79.974,11.2619]
[1770977570879,9.64250081,80.029,79.97,8.16500684]
[1770977571782,9.64250081,80.029,79.963,11.2635]
[1770977572084,9.64250081,80.029,79.923,175.2994]
[1770977572085,9.64924449,80.009,79.947,11.2658]
[1770977572775,9.64924449,80.009,79.95,8.16500684]
[1770977574074,9.64924449,80.009,79.96,8.16500684]
[1770977574280,9.62237738,80.039,79.98,8.16500684]
[1770977574872,11.2535,80.035,79.98,19.42620684]
[1770977575072,9.62237738,80.039,79.99,8.16500684]
[1770977575274,9.60210341,80.069,79.99,8.16500684]
[1770977575476,11.2528,80.04,79.99,8.16500684]
[1770977575678,9.60210341,80.041,79.99,8.16500684]
[1770977575990,9.60210341,80.057,80.0,8.16500684]
[1770977576775,9.61044476,80.049,79.98,8.16500684]
[1770977577176,9.61044476,80.048,79.97,8.16500684]
[1770977577376,9.61044476,80.039,79.97,8.16500684]
[1770977577789,9.61044476,80.039,79.98,8.16500684]
[1770977578086,9.61044476,80.019,79.95,8.16500684]
[1770977578287,9.61044476,80.019,79.94,8.16500684]
[1770977578487,9.61044476,80.009,79.94,8.16500684]
[1770977578687,17.73726024,80.0,79.937,140.6]
[1770977578884,9.5722534,79.999,79.937,140.6]
[1770977579487,20.8316534,79.994,79.937,151.8672]
[1770977579989,20.8316534,79.994,79.937,11.2672]
[1770977580189,9.5722534,79.993,79.937,11.2672]
[1770977580781,9.58279177,79.979,79.93,141.3]
[1770977580994,9.58279177,79.979,79.912,141.3]
[1770977581191,9.58279177,79.965,79.904,11.2718]
[1770977581486,9.58279177,79.965,79.9,8.16500684]
[1770977581686,9.58279177,79.981,79.945,11.2661]
[1770977581884,8.16500684,79.99,79.945,11.2661]
[1770977582189,9.58279177,79.998,79.945,11.2661]
[1770977582784,9.61569246,79.993,79.93,8.16500684]
[1770977583090,9.61569246,79.979,79.91,8.16500684]
[1770977583784,9.61569246,79.969,79.907,99.8]
[1770977584892,19.42630684,79.98,79.91,8.16500684]
[1770977585289,11.2619,79.975,79.927,11.2686]
[1770977585493,11.2619,79.975,79.91,8.16500684]
[1770977586789,11.2619,79.975,79.918,11.2698]
[1770977587288,11.2604,79.986,79.93,8.16500684]
[1770977587991,9.62967106,79.995,79.941,11.2667]
[1770977589184,20.88192316,79.984,79.932,11.2679]
[1770977589390,9.62132316,79.983,79.932,11.2679]
[1770977589796,11.2592,79.994,79.942,11.2665]
[1770977590385,9.62132316,80.015,79.95,8.16500684]
[1770977591586,9.6189823,80.012,79.95,8.16500684]
[1770977591792,8.16500684,80.04,79.936,99.8]
[1770977591793,9.6189823,79.999,79.936,99.8]
[1770977592293,9.6189823,79.999,79.94,8.16500684]
[1770977592794,9.6189823,79.999,79.936,99.8]
[1770977593492,9.59863321,79.997,79.936,99.8]
[1770977594092,9.59863321,79.988,79.939,11.2669]
[1770977594585,9.59863321,79.988,79.946,11.2659]
[1770977594801,11.2589,79.997,79.946,11.2659]
[1770977595298,11.2589,79.997,79.91,99.8]
[1770977595299,8.16500684,80.07,79.99,8.16500684]
[1770977595497,9.58977601,80.059,79.99,8.16500684]
[1770977595691,8.16500684,80.08,79.98,8.16500684]
[1770977595692,9.58977601,80.049,79.98,8.16500684]
[1770977596491,9.58977601,80.019,79.948,446.54774993]
[1770977596796,8.16500684,80.01,79.948,446.54774993]
[1770977596998,9.73094212,80.009,79.948,446.54774993]
[1770977597197,8.16500684,80.0,79.948,446.54774993]
[1770977597397,9.73094212,79.999,79.948,446.54774993]
[1770977597788,9.73094212,79.999,79.963,11.2636]
[1770977598793,17.85720724,80.02,79.972,11.2622]
[1770977599195,9.6922004,80.02,79.972,11.2622]
[1770977600405,20.9480004,80.019,79.972,11.2622]
[1770977600907,9.70537957,80.018,79.972,11.2622]
[1770977601795,11.256,80.017,79.972,11.2622]
[1770977601995,9.70537957,80.016,79.972,11.2622]
[1770977602404,11.2569,80.011,79.963,11.2635]
[1770977602599,9.69324106,80.01,79.963,11.2635]
[1770977602901,9.69324106,80.01,79.952,142.52]
[1770977603504,9.69324106,80.01,79.97,11.2626]
[1770977603707,9.69324106,80.01,79.952,142.52]
[1770977604707,11.2572,80.009,79.963,11.2636]
[1770977605204,9.69324106,80.01,79.963,11.2636]
[1770977605596,20.95024106,80.01,79.963,11.2636]
[1770977605794,9.69372998,80.045,79.96,45.78500684]
[1770977605998,9.69372998,80.045,79.98,8.16500684]
[1770977606206,9.69372998,80.045,79.983,11.49143021]
[1770977606701,9.69372998,80.045,80.004,11.2577]
[1770977608001,11.2504,80.057,79.992,11.49143021]
[1770977608201,11.2504,80.057,79.991,11.49143021]
[1770977608400,22.4808,80.129,80.01,8.16500684]
[1770977608604,22.4808,80.129,79.992,37.62]
[1770977608605,22.4808,80.129,80.03,8.16500684]
[1770977608805,6.45526864,80.072,80.039,11.49143021]
[1770977609098,6.864e-05,80.072,80.04,11.49143021]
[1770977609307,6.864e-05,80.072,80.032,11.49143021]
[1770977609498,8.16500684,80.06,80.006,11.49143021]
[1770977609803,8.16500684,80.06,80.001,11.49143021]
[1770977610106,11.2488,80.069,80.008,11.49143021]
[1770977610307,6.4488,80.069,80.01,8.16500684]
[1770977610501,6.864e-05,80.072,80.007,11.49143021]
[1770977610701,6.864e-05,80.072,80.024,11.2549]
[1770977611104,4.63652177,80.059,80.002,11.49143021]
[1770977611310,4.63652177,80.059,79.995,11.49143021]
[1770977611909,4.63652177,80.048,79.998,11.2586]
[1770977612113,4.63652177,80.048,79.987,99.76]
[1770977612708,1.13652177,80.048,79.987,99.76]
[1770977612903,11.2531,80.038,79.99,13.91059888]
[1770977613105,1.13652177,80.048,79.99,2.65079888]
[1770977613506,11.253,80.039,79.99,2.65079888]
[1770977614814,11.2518,80.047,79.991,13.91179398]
[1770977615008,4.01437862,80.046,79.991,13.91179398]
[1770977615613,11.2527,80.041,79.991,13.91179398]
[1770977616012,11.2527,80.041,79.995,11.259]
[1770977616413,11.2527,80.041,79.992,2.64590174]
[1770977616609,11.2527,80.041,79.994,2.64991342]
[1770977617512,4.01437862,80.046,79.995,13.90891342]
[1770977617908,4.01437862,80.046,79.995,2.64991342]
[1770977618812,4.01437862,80.044,79.995,2.64991342]
[1770977619820,11.2527,80.041,79.995,2.64991342]
[1770977620013,4.01437862,80.04,79.995,2.64991342]
[1770977620319,4.01437862,80.029,79.987,11.49143021]
[1770977620516,4.01437862,80.029,79.98,2.64787667]
[1770977621317,11.2546,80.027,79.98,2.64787667]
[1770977622014,15.26897862,80.027,79.98,2.64787667]
[1770977622219,11.2559,80.018,79.98,2.64787667]
[1770977622419,4.01437862,80.017,79.968,22.75423021]
[1770977622722,4.01437862,80.009,79.966,2.66557368]
[1770977623020,4.01437862,80.009,79.954,2.67097401]
[1770977623614,11.2587,79.998,79.954,2.67097401]
[1770977624313,11.2587,79.998,79.954,14.16240422]
[1770977625218,11.2587,79.998,79.955,2.67381659]
[1770977627906,4.01437862,80.009,79.963,2.67670057]
[1770977628819,11.2575,80.007,79.963,2.67670057]
[1770977629216,4.01437862,80.003,79.958,22.75573021]
[1770977629519,4.01437862,80.003,79.951,11.2653]
[1770977629720,4.01437862,80.003,79.949,2.6722503]
[1770977630220,4.01437862,80.003,79.949,14.16368051]
[1770977630821,11.26,79.989,79.949,14.16368051]
[1770977631318,11.257,80.01,79.965,11.2633]
[1770977631519,11.257,80.01,79.966,11.49143021]
[1770977631820,15.27137862,80.01,79.966,11.49143021]
[1770977632214,15.27137862,80.01,79.965,11.2633]
[1770977632215,15.27137862,80.01,79.967,11.49143021]
[1770977633419,15.27177862,80.008,79.967,11.49143021]
[1770977633614,15.27177862,80.008,79.966,11.49143021]
[1770977634226,15.27177862,80.008,79.967,11.49143021]
[1770977635222,11.2576,80.006,79.967,11.49143021]
[1770977635623,11.2576,80.006,79.965,22.75473021]
[1770977635825,11.2588,79.998,79.964,2.66795075]
[1770977637221,11.2588,79.998,79.96,11.49143021]
[1770977637926,11.2588,79.998,79.962,11.49143021]
[1770977638122,11.2591,79.995,79.962,11.49143021]
[1770977638322,11.2591,79.995,79.957,11.49143021]
[1770977639025,4.01437862,79.997,79.958,11.2642]
[1770977639223,4.01437862,79.997,79.958,22.75563021]
[1770977639726,11.259,79.996,79.958,22.75563021]
[1770977639921,11.259,79.996,79.951,2.57796534]
[1770977639922,11.259,79.996,79.957,11.49143021]
[1770977641428,11.259,79.996,79.958,11.49143021]
[1770977641817,8.1720322,80.04,79.958,11.49143021]
[1770977641818,3.95888945,80.013,79.959,2.58566368]
[1770977642025,3.95888945,80.013,79.973,2.58566368]
[1770977642423,11.2575,80.007,79.973,2.58566368]
[1770977643029,3.95888945,79.998,79.954,15.37732622]
[1770977643219,3.95888945,79.998,79.947,2.77069164]
[1770977643422,3.95888945,80.019,79.947,2.77069164]
[1770977643625,3.95888945,80.019,79.954,2.77069164]
[1770977643824,3.95888945,79.997,79.954,2.77069164]
[1770977644026,3.95888945,79.997,79.939,2.77069164]
[1770977644829,11.2603,79.987,79.943,11.2663]
[1770977646233,11.2603,79.987,79.939,2.77069164]
[1770977646234,11.2617,79.977,79.939,2.77069164]
[1770977647934,3.95888945,80.049,79.97,8.1720322]
[1770977648130,3.95888945,80.039,79.981,2.93815202]
[1770977648733,3.95888945,80.027,79.982,11.2608]
[1770977648938,3.95888945,80.059,79.981,2.93815202]
[1770977649738,11.2536,80.035,79.988,11.2601]
[1770977649935,3.95888945,80.055,80.001,3.08472276]
[1770977650139,3.95888945,80.055,80.01,8.1720322]
[1770977650343,3.95888945,80.055,80.017,11.2559]
[1770977650535,3.95888945,80.055,79.971,60.59669342]
[1770977650536,11.59103619,80.127,80.041,3.93997918]
[1770977650843,114.96,80.078,80.024,3.93997918]
[1770977651250,126.2075,80.078,80.026,11.2547]
[1770977651440,114.96,80.078,80.026,11.2547]
[1770977651744,11.2465,80.085,80.03,8.1720322]
[1770977651933,115.18,80.078,80.017,11.2559]
[1770977652141,8.1720322,80.07,80.012,3.93997918]
[1770977652443,8.1720322,80.07,80.0,8.1720322]
[1770977652744,3.95888945,80.068,80.0,8.1720322]
[1770977652939,3.95888945,80.068,79.997,3.93997918]
[1770977653544,3.95888945,80.066,79.997,3.93997918]
[1770977653843,3.95888945,80.054,79.999,11.2584]
[1770977654136,3.95888945,80.054,80.01,8.1720322]
[1770977654642,99.76,80.063,80.013,11.2565]
[1770977655045,99.76,80.063,80.013,15.19647918]
[1770977655239,3.95888945,80.079,80.013,15.19647918]
[1770977655444,3.95888945,80.07,80.013,15.19647918]
[1770977655848,3.95888945,80.07,79.963,37.62]
[1770977655849,119.19888945,80.069,80.02,3.93997918]
[1770977656045,115.24,80.069,80.02,3.93997918]
[1770977656244,115.30006864,80.072,80.02,3.93997918]
[1770977656846,115.30006864,80.072,80.021,11.2553]
[1770977657248,6.864e-05,80.072,80.021,11.2553]
[1770977657439,115.46,80.071,80.021,11.2553]
[1770977659453,115.46,80.071,80.022,3.93997918]
[1770977659749,115.78,80.07,80.026,3.93997918]
[1770977660045,115.84006864,80.072,80.026,3.93997918]
[1770977660854,115.84006864,80.072,80.0,8.1720322]
[1770977660855,3.95888945,80.071,80.012,3.93997918]
[1770977661049,3.95888945,80.067,80.012,15.19667918]
[1770977661248,3.95888945,80.067,80.013,3.93997918]
[1770977661451,99.74,80.066,80.013,3.93997918]
[1770977662954,99.74,80.066,80.014,15.19637918]
[1770977663357,116.28,80.065,80.014,15.19637918]
[1770977664254,120.23888945,80.065,80.014,15.19637918]
[1770977665056,3.95888945,80.064,80.014,15.19637918]
[1770977666953,6.864e-05,80.072,80.041,3.93997918]
[1770977669260,6.864e-05,80.072,80.027,11.2545]
[1770977669556,117.04,80.071,80.027,11.2545]
[1770977669764,11.2488,80.069,80.025,3.93997918]
[1770977670163,117.04,80.068,80.025,3.93997918]
[1770977671362,117.24,80.067,80.028,3.93859156]
[1770977671559,6.864e-05,80.072,80.028,3.93859156]
[1770977671763,117.26,80.071,80.028,3.93859156]
[1770977672058,4.06258747,80.067,79.996,3.93859156]
[1770977672256,4.06258747,80.065,79.996,3.93859156]
[1770977672464,4.06258747,80.063,79.996,3.93859156]
[1770977672761,4.06258747,80.057,80.006,11.2575]
[1770977673362,4.06258747,80.055,80.006,11.2575]
[1770977673559,4.06258747,80.054,80.006,11.2575]
[1770977673761,15.31338747,80.054,80.006,11.2575]
[1770977674065,99.7,80.053,80.006,11.2575]
[1770977674759,15.31338747,80.054,80.006,11.2575]
[1770977675071,99.7,80.053,80.007,3.93859156]
[1770977675270,15.31338747,80.054,80.007,3.93859156]
[1770977675566,99.7,80.06,80.026,3.84682309]
[1770977676763,117.76,80.064,80.026,3.84682309]
[1770977676966,3.83755092,80.071,80.026,3.84682309]
[1770977677172,6.864e-05,80.072,80.026,3.84682309]
[1770977678375,117.74006864,80.072,80.026,3.84682309]
[1770977678763,117.74006864,80.072,80.027,11.2545]
[1770977679074,3.83755092,80.071,80.026,3.84682309]
[1770977680774,11.249,80.067,80.026,3.84682309]
[1770977681270,129.369,80.067,80.026,3.84682309]
[1770977681470,129.369,80.067,79.989,15.37732622]
[1770977681471,3.83755092,80.057,80.008,3.84682309]
[1770977681969,3.83755092,80.057,79.991,3.84682309]
[1770977682170,3.83755092,80.055,79.991,3.84682309]
[1770977682761,11.2519,80.047,79.998,3.84682309]
[1770977683372,99.7,80.046,79.998,3.84682309]
[1770977683669,118.12,80.046,79.998,3.84682309]
[1770977683867,15.08975092,80.044,79.998,3.84682309]
[1770977684066,3.83755092,80.043,79.998,3.84682309]
[1770977684267,3.83755092,80.039,79.987,11.2602]
[1770977684573,6.864e-05,80.072,79.961,3.84682309]
[1770977684574,3.83755092,80.029,79.961,3.84682309]
[1770977684774,3.83755092,80.027,79.971,11.2624]
[1770977684968,3.83755092,80.027,79.972,3.84682309]
[1770977685370,3.83755092,80.025,79.972,3.84682309]
[1770977685868,11.2554,80.022,79.972,3.84682309]
[1770977686073,118.42,80.021,79.972,3.84682309]
[1770977686466,118.48,80.02,79.972,3.84682309]
[1770977687270,3.83755092,80.022,79.972,3.84682309]
[1770977687469,3.83755092,80.02,79.972,3.84682309]
[1770977687869,3.83755092,80.017,79.956,3.84682309]
[1770977688475,3.83755092,80.017,79.918,37.62]
[1770977688476,116.26,80.019,79.971,3.84682309]
[1770977689077,3.83755092,80.031,79.982,3.84682309]
[1770977689472,99.72,80.03,79.982,3.84682309]
[1770977689671,114.81175092,80.03,79.982,3.84682309]
[1770977689871,3.83755092,80.029,79.982,3.84682309]
[1770977690072,122.65755092,80.028,79.982,3.84682309]
[1770977690271,11.256,80.018,79.982,3.84682309]
[1770977690576,11.256,80.018,79.97,8.1720322]
[1770977690965,11.256,80.018,79.968,3.84682309]
[1770977691368,11.2559,80.018,79.969,3.84682309]
[1770977692081,3.83755092,80.027,79.979,3.84682309]
[1770977692384,104.02,80.026,79.979,3.84682309]
[1770977693875,115.2748,80.026,79.98,15.10792309]
[1770977694775,3.83755092,80.027,79.98,3.84682309]
[1770977694980,3.83755092,80.103,80.022,3.84682309]
[1770977695177,3.83755092,80.099,80.031,3.84682309]
[1770977696381,3.83755092,80.088,80.031,3.84682309]
[1770977696879,3.83755092,80.085,80.035,11.2533]
[1770977698082,3.83755092,80.085,80.038,3.84682309]
[1770977698484,174.7777,80.162,80.041,3.84682309]
[1770977698485,3.83755092,80.101,80.041,3.84682309]
[1770977699080,3.83755092,80.101,80.057,11.2503]
[1770977699288,3.83755092,80.101,80.041,3.84682309]
[1770977700184,3.83755092,80.101,80.053,11.2509]
[1770977700385,3.83755092,80.115,80.054,3.84682309]
[1770977700580,3.83755092,80.115,80.05,8.16450397]
[1770977700581,3.83755092,80.115,80.061,3.9286991]
[1770977700888,4.17441046,80.114,80.061,3.9286991]
[1770977701587,4.17441046,80.114,80.063,11.2495]
[1770977702176,4.17441046,80.107,80.061,3.9286991]
[1770977702487,4.17441046,80.107,80.055,11.2505]
[1770977703086,4.17441046,80.1,80.052,11.48843529]
[1770977703388,4.17441046,80.1,80.05,11.48843529]
[1770977703986,4.17441046,80.1,80.047,15.1804991]
[1770977704187,11.2452,80.094,80.047,3.9286991]
[1770977704391,4.17441046,80.093,80.047,3.9286991]
[1770977707287,4.17441046,80.093,80.048,11.2516]
[1770977707487,4.17441046,80.093,80.048,15.1802991]
[1770977708184,4.17441046,80.093,80.05,15.1799991]
[1770977708993,3.42290582,80.09,80.05,18.60290492]
[1770977709687,3.42290582,80.09,80.054,3.9286991]
[1770977710392,3.42290582,80.1,80.061,3.9286991]
[1770977711291,7.59731628,80.1,80.061,3.9286991]
[1770977711492,4.17441046,80.099,80.061,3.9286991]
[1770977712094,4.17441046,80.099,80.06,3.42290582]
[1770977712794,4.17441046,80.099,80.053,11.2509]
[1770977713293,4.17441046,80.099,80.05,3.42290582]
[1770977713497,7.59731628,80.09,80.05,3.42290582]
[1770977713797,4.17441046,80.09,80.05,3.42290582]
[1770977713998,4.17441046,80.09,80.051,3.9286991]
[1770977714196,3.42290582,80.1,80.06,3.42290582]
[1770977714692,11.2438,80.104,80.06,3.42290582]
[1770977714895,3.42290582,80.1,80.06,3.42290582]
[1770977715095,4.17441046,80.106,80.061,3.9286991]
[1770977715289,4.17441046,80.128,80.087,11.2461]
[1770977715492,4.17441046,80.128,80.081,3.9286991]
[1770977716001,4.17441046,80.128,80.083,11.2467]
[1770977716408,4.17441046,80.119,80.083,11.2467]
[1770977716606,4.17441046,80.119,80.076,11.2477]
[1770977717304,3.42290582,80.12,80.07,3.42290582]
[1770977717305,3.42290582,80.12,80.078,11.2473]
[1770977717500,22.4696,80.169,80.08,3.42290582]
[1770977717501,3.42290582,80.13,80.08,3.42290582]
[1770977717808,3.42290582,80.13,80.09,7.35160492]
[1770977718306,3.42290582,80.13,80.09,3.42290582]
[1770977718809,3.42290582,80.13,80.087,11.2461]
[1770977719304,3.42290582,80.12,80.08,3.42290582]
[1770977720102,4.17441046,80.122,80.082,11.2467]
[1770977721203,3.42290582,80.12,80.082,11.2467]
[1770977721402,3.42290582,80.12,80.08,3.42290582]
[1770977722707,7.59731628,80.12,80.08,3.42290582]
[1770977723399,4.17441046,80.146,80.09,3.9286991]
[1770977723598,4.17441046,80.159,80.111,3.9286991]
[1770977724002,4.17441046,80.159,80.12,3.42290582]
[1770977724199,4.17441046,80.155,80.076,11.48843529]
[1770977724405,3.42290582,80.13,80.081,3.9286991]
[1770977724611,99.64,80.16,80.063,3.9286991]
[1770977724612,4.17441046,80.119,80.063,3.9286991]
[1770977724907,7.59731628,80.11,80.063,3.9286991]
[1770977725398,7.59731628,80.11,80.07,3.42290582]
[1770977725601,4.17441046,80.124,80.071,3.9286991]
[1770977725810,3.42290582,80.12,80.071,3.9286991]
[1770977726011,4.17441046,80.124,80.081,3.9286991]
[1770977726308,3.42290582,80.13,80.081,3.9286991]
[1770977726703,4.17441046,80.129,80.081,3.9286991]
[1770977726901,4.17441046,80.11,80.06,3.9286991]
[1770977727101,4.17441046,80.109,80.06,3.9286991]
[1770977727710,4.17441046,80.122,80.062,3.9286991]
[1770977727910,4.17441046,80.122,80.032,11.48843529]
[1770977727911,4.17441046,80.139,80.071,3.9286991]
[1770977728111,4.17441046,80.139,80.081,3.9286991]
[1770977728413,11.2403,80.129,80.081,3.9286991]
[1770977729814,11.2403,80.129,80.083,11.2466]
[1770977730718,11.2403,80.129,80.083,15.37384705]
[1770977736114,11.2403,80.129,80.084,3.81348717]
[1770977737718,11.2403,80.129,80.076,11.48843529]
[1770977737719,11.2393,80.136,80.088,3.81348717]
[1770977738117,3.77574203,80.135,80.088,3.81348717]
[1770977739316,3.77574203,80.135,80.088,15.30192246]
[1770977739717,8.1480001,80.14,80.088,15.30192246]
[1770977739718,3.77574203,80.131,80.088,15.30192246]
[1770977740717,11.2402,80.13,80.088,15.30192246]
[1770977741117,11.2402,80.13,80.089,11.48843529]
[1770977741918,11.2402,80.13,80.09,11.48843529]
[1770977742219,3.77574203,80.131,80.093,11.2452]
[1770977742419,3.77574203,80.131,80.096,11.48843529]
[1770977742620,3.77574203,80.131,80.091,11.48843529]
[1770977742918,3.77574203,80.131,80.078,3.81348717]
[1770977742919,11.241,80.124,80.087,11.48843529]
[1770977743121,11.241,80.124,80.088,11.48843529]
[1770977743720,11.2407,80.126,80.088,11.48843529]
[1770977744125,3.77574203,80.126,80.088,11.48843529]
[1770977744321,8.1480001,80.16,80.063,11.2495]
[1770977744322,3.77574203,80.108,80.063,11.2495]
[1770977744722,3.77574203,80.108,80.056,15.37732622]
[1770977745030,3.77574203,80.108,80.053,7.31274395]
[1770977745518,3.77574203,80.108,80.015,30.39435039]
[1770977745519,11.2461,80.088,80.041,11.2526]
[1770977745719,11.2461,80.088,80.04,22.68663822]
[1770977745720,99.62,80.1,80.04,7.309312]
[1770977745914,8.1480001,80.09,80.04,7.309312]
[1770977746313,8.1480001,80.1,80.04,7.309312]
[1770977746920,3.42345832,80.09,80.05,3.42345832]
[1770977749314,22.4756,80.147,80.06,3.42345832]
[1770977749514,22.4756,80.147,80.022,45.48709342]
[1770977749515,99.64,80.146,80.071,7.23133709]
[1770977749720,3.42345832,80.11,80.071,7.23133709]
[1770977750727,14.66635832,80.11,80.071,7.23133709]
[1770977750928,11.2429,80.11,80.071,7.23133709]
[1770977752021,99.64,80.115,80.071,7.23133709]
[1770977752825,8.14706898,80.13,80.071,7.23133709]
[1770977753026,8.14706898,80.12,80.071,7.23133709]
[1770977753728,11.2425,80.114,80.071,7.23133709]
[1770977754119,22.4756,80.147,80.071,7.23133709]
[1770977754120,106.0,80.137,80.071,7.23133709]
[1770977754320,8.14706898,80.13,80.071,7.23133709]
[1770977754522,22.47,80.167,80.061,7.17427052]
[1770977754725,22.47,80.167,80.04,30.65256898]
[1770977754726,8.14706898,80.15,80.081,7.17175835]